bitfinex/quotes_SOLUSD_20250818
["timestamp","ask_amount","ask_price","bid_price","bid_amount"]
[1755533081981,0.06,183.62,183.61,15.10621557]
[1755533082147,4.12729948,183.62,183.61,15.10621557]
[1755533082564,7.7882656,183.62,183.61,15.10621557]
[1755533082875,4.12729948,183.62,183.61,20.83327125]
[1755533083051,7.7882656,183.62,183.61,20.83327125]
[1755533083248,4.12729948,183.62,183.61,20.83327125]
[1755533083449,7.7882656,183.62,183.61,26.2795977]
[1755533083670,4.12729948,183.62,183.61,26.9895977]
[1755533083874,7.7882656,183.62,183.61,26.9895977]
[1755533084188,4.12729948,183.62,183.61,26.9895977]
[1755533084367,0.06,183.62,183.61,26.9895977]
[1755533084568,4.12764688,183.62,183.61,26.9895977]
[1755533085262,0.06,183.62,183.61,21.26254202]
[1755533085582,0.06,183.62,183.61,26.9895977]
[1755533087669,0.06,183.62,183.61,21.26254202]
[1755533087990,0.06,183.62,183.61,65.6395977]
[1755533088870,4.12799424,183.62,183.61,26.2795977]
[1755533089191,0.06,183.62,183.61,66.3495977]
[1755533092359,0.06,183.64,183.61,66.3495977]
[1755533092569,0.06,183.64,183.63,20.83327125]
[1755533092779,0.06,183.64,183.63,60.17327125]
[1755533092977,0.06,183.64,183.63,60.88327125]
[1755533093897,0.06,183.64,183.63,66.32900451]
[1755533094206,0.06,183.64,183.63,65.61900451]
[1755533094491,0.06,183.64,183.63,66.32900451]
[1755533094492,1e-08,183.64,183.63,66.32900451]
[1755533097073,1e-08,183.64,183.63,26.98900451]
[1755533097273,1e-08,183.64,183.63,66.28900451]
[1755533098178,1e-08,183.64,183.63,21.26194883]
[1755533098521,1e-08,183.64,183.63,66.26900451]
[1755533099105,1e-08,183.64,183.63,66.24900451]
[1755533100235,1e-08,183.64,183.63,20.55194883]
[1755533100392,5.92705569,183.64,183.63,15.10621557]
[1755533100594,1e-08,183.64,183.63,54.36621557]
[1755533100809,0.20000001,183.64,183.63,59.81194883]
[1755533101323,30.26169516,183.64,183.63,39.24]
[1755533101531,39.64699077,183.64,183.63,39.24]
[1755533101895,33.7206135,183.64,183.63,39.24]
[1755533102223,39.64766918,183.64,183.63,39.24]
[1755533102421,39.64793987,183.64,183.63,39.24]
[1755533103211,39.64793987,183.64,183.58,20.08478234]
[1755533103212,45.09342532,183.64,183.58,0.03]
[1755533103415,45.09342532,183.64,183.59,39.32]
[1755533103416,5.72705568,183.6,183.59,39.32]
[1755533103623,5.72705568,183.61,183.59,39.32]
[1755533103994,6.29705568,183.6,183.59,39.32]
[1755533104221,9.79084728,183.6,183.59,39.32]
[1755533104405,10.36084728,183.6,183.59,39.32]
[1755533104607,14.01908721,183.6,183.59,39.32]
[1755533104798,26.0,183.57,183.54,0.03]
[1755533105003,7.72326881,183.56,183.54,0.03]
[1755533105201,26.0,183.56,183.55,39.3]
[1755533105537,0.54,183.6,183.56,15.10621557]
[1755533105708,26.0,183.62,183.58,20.83327125]
[1755533105890,26.0,183.61,183.6,15.10621557]
[1755533106097,26.0,183.61,183.6,54.52621557]
[1755533106290,5.72705569,183.64,183.6,59.97270084]
[1755533106518,1e-08,183.64,183.6,59.97270084]
[1755533106699,4.06235152,183.64,183.6,59.97270084]
[1755533106902,26.00000001,183.64,183.6,65.69975652]
[1755533107203,1e-08,183.64,183.6,59.97270084]
[1755533107405,1e-08,183.64,183.6,60.68270084]
[1755533107406,26.00000001,183.64,183.6,60.68270084]
[1755533107831,31.72705569,183.64,183.6,59.97270084]
[1755533108124,1e-08,183.64,183.6,59.97270084]
[1755533108338,1e-08,183.64,183.6,60.65270084]
[1755533108629,1e-08,183.64,183.62,15.10621557]
[1755533108931,1e-08,183.64,183.63,54.52621557]
[1755533109323,1e-08,183.64,183.63,60.93327125]
[1755533110032,1e-08,183.64,183.63,66.37900451]
[1755533110533,0.77428504,183.67,183.63,66.37900451]
[1755533110534,1e-08,183.67,183.66,15.10621557]
[1755533110707,1e-08,183.67,183.66,20.83327125]
[1755533111019,1e-08,183.67,183.66,60.99327125]
[1755533111206,1e-08,183.68,183.66,60.99327125]
[1755533111413,1e-08,183.68,183.67,21.51327125]
[1755533111810,3.65117676,183.8,183.68,15.10621557]
[1755533112016,5.72705568,183.78,183.74,15.10621557]
[1755533112218,3.65117676,183.78,183.76,15.10621557]
[1755533112528,0.54,183.83,183.78,15.10621557]
[1755533112700,5.72705568,183.82,183.8,15.10621557]
[1755533112902,9.37579929,183.82,183.81,39.52]
[1755533113113,9.78035179,183.82,183.81,39.52]
[1755533113317,30.58960124,183.82,183.81,39.52]
[1755533113517,13.9614427,183.82,183.81,39.52]
[1755533113727,4.58960124,183.82,183.81,39.52]
[1755533113921,32.26705568,183.82,183.81,39.52]
[1755533114106,36.31665692,183.82,183.81,39.52]
[1755533114318,32.26705568,183.82,183.81,39.52]
[1755533114514,32.26705568,183.82,183.78,5.4412881]
[1755533114845,5.72705568,183.8,183.79,54.74621557]
[1755533115436,0.54,183.83,183.8,15.10621557]
[1755533115649,26.54,183.82,183.81,39.68]
[1755533116236,31.97961283,183.84,183.81,39.68]
[1755533116535,26.0,183.82,183.81,39.68]
[1755533116731,31.72705568,183.82,183.81,39.68]
[1755533117857,31.72705568,183.82,183.81,54.78621557]
[1755533118034,0.77428504,183.85,183.81,60.90661598]
[1755533118035,6.50134072,183.85,183.81,60.90661598]
[1755533118223,0.77428504,183.85,183.82,15.78621557]
[1755533118428,0.77428504,183.85,183.84,15.10621557]
[1755533118649,26.77428504,183.85,183.84,15.10621557]
[1755533118848,32.50134072,183.85,183.84,15.10621557]
[1755533119023,6.50134072,183.85,183.84,15.10621557]
[1755533119527,26.77428504,183.85,183.84,15.10621557]
[1755533119744,0.77428504,183.85,183.84,15.10621557]
[1755533120056,0.77428504,183.85,183.84,15.78621557]
[1755533120363,0.77428504,183.85,183.84,26.95278386]
[1755533120772,0.05428504,183.85,183.84,26.95278386]
[1755533120971,6.10983669,183.99,183.87,15.10621557]
[1755533121139,6.10983669,183.99,183.89,15.10621557]
[1755533121323,6.10983669,183.99,183.95,15.10621557]
[1755533121643,6.10983669,183.99,183.97,15.10621557]
[1755533121845,6.10983669,183.99,183.98,39.86]
[1755533122051,11.83689237,183.99,183.98,39.86]
[1755533122256,6.10983669,183.99,183.98,54.96621557]
[1755533122425,12.54689237,183.99,183.98,39.86]
[1755533122620,6.10983669,183.99,183.98,39.86]
[1755533122822,12.54689237,183.99,183.98,39.86]
[1755533123024,12.54689237,183.99,183.93,15.10621557]
[1755533123252,0.71,183.98,183.93,15.10621557]
[1755533123551,0.71,183.97,183.95,15.10621557]
[1755533123756,0.71,183.96,183.94,39.86]
[1755533123934,11.5449171,183.99,183.94,39.86]
[1755533124138,0.71,183.98,183.94,39.86]
[1755533124542,8.97622414,183.96,183.94,39.86]
[1755533124726,8.97622414,183.95,183.94,15.10621557]
[1755533124924,26.0,183.92,183.87,15.10621557]
[1755533125131,34.97622414,183.92,183.89,15.10621557]
[1755533125348,26.0,183.96,183.91,15.10621557]
[1755533125559,26.0,183.96,183.93,15.10621557]
[1755533125761,8.97622414,183.94,183.93,15.10621557]
[1755533125933,9.68622414,183.94,183.92,40.02]
[1755533126276,8.97622414,183.93,183.92,40.02]
[1755533126462,26.0,183.96,183.92,40.02]
[1755533126463,8.97622414,183.94,183.93,15.10621557]
[1755533126657,26.0,183.96,183.93,15.10621557]
[1755533126965,34.97622414,183.96,183.93,15.10621557]
[1755533127140,8.97622414,183.97,183.93,15.78621557]
[1755533127341,6.10983669,183.99,183.93,15.78621557]
[1755533127653,8.97622414,183.97,183.93,15.78621557]
[1755533127848,8.97622414,183.97,183.94,0.68]
[1755533128160,0.71,183.97,183.95,40.0]
[1755533128338,9.68622414,183.96,183.91,20.54365345]
[1755533128534,6.81983669,183.99,183.93,15.10621557]
[1755533128751,8.97622414,183.96,183.93,15.10621557]
[1755533129365,38.25498791,183.99,183.93,15.10621557]
[1755533129569,8.97622414,183.95,183.93,15.10621557]
[1755533129956,41.08606083,183.99,183.94,0.68]
[1755533130148,8.97622414,183.98,183.96,15.10621557]
[1755533130473,8.97622414,183.97,183.96,15.10621557]
[1755533130968,6.81983669,183.99,183.96,15.10621557]
[1755533131163,8.97622414,183.97,183.96,15.10621557]
[1755533131469,9.68622414,183.97,183.9,15.10621557]
[1755533131642,8.97622414,183.94,183.92,15.10621557]
[1755533132240,8.97622414,183.94,183.92,21.22314974]
[1755533132745,8.97622414,183.93,183.92,15.10621557]
[1755533132940,8.97622414,183.94,183.92,15.10621557]
[1755533133146,0.71,183.97,183.92,15.10621557]
[1755533133147,0.71,183.97,183.92,20.54336215]
[1755533133344,8.97622414,183.97,183.94,15.10621557]
[1755533133563,8.97622414,183.98,183.96,15.10621557]
[1755533133867,6.10983669,183.99,183.98,15.10621557]
[1755533133868,15.08606083,183.99,183.98,15.10621557]
[1755533134066,15.08606083,183.99,183.98,55.06621557]
[1755533134270,6.10983669,183.99,183.98,55.06621557]
[1755533134449,6.10983669,183.99,183.98,60.50158898]
[1755533134653,15.08606083,183.99,183.98,55.06621557]
[1755533134967,6.10983669,183.99,183.98,55.06621557]
[1755533136663,6.10983669,183.99,183.98,55.06621557]
[1755533137168,15.08606083,183.99,183.98,55.06621557]
[1755533137352,6.10983669,183.99,183.98,55.06621557]
[1755533137560,15.08606083,183.99,183.98,39.96]
[1755533137763,15.08606083,183.99,183.98,55.06621557]
[1755533137964,6.10983669,183.99,183.98,70.16781312]
[1755533139159,6.10983669,183.99,183.98,61.19158898]
[1755533139357,6.10983669,183.99,183.98,70.16781312]
[1755533139582,0.06,184.05,183.99,15.10621557]
[1755533139889,0.06,184.05,184.04,24.08243971]
[1755533140049,0.06,184.05,184.04,64.16243971]
[1755533140255,0.06,184.05,184.04,64.85243971]
[1755533140486,0.06,184.05,184.04,24.77243971]
[1755533140685,0.06,184.05,184.04,64.83243971]
[1755533141060,0.06,184.05,184.04,55.85621557]
[1755533141480,0.06,184.05,184.04,64.81243971]
[1755533141674,8.97622414,184.11,184.07,15.10621557]
[1755533141866,8.97622414,184.11,184.09,15.10621557]
[1755533142186,0.67,184.14,184.08,40.04]
[1755533142187,26.0,184.13,184.1,40.04]
[1755533142370,8.97622414,184.12,184.1,40.04]
[1755533143286,26.67,184.14,184.1,40.04]
[1755533143287,0.67,184.14,184.11,15.10621557]
[1755533143586,0.67,184.14,184.12,40.08]
[1755533143977,0.67,184.13,184.12,40.08]
[1755533144464,0.67,184.15,184.12,40.08]
[1755533144786,8.97622414,184.13,184.12,40.08]
[1755533144965,8.97622414,184.13,184.11,15.10621557]
[1755533145164,32.10018067,184.16,184.11,15.10621557]
[1755533145471,0.67,184.15,184.12,40.02]
[1755533145772,31.43018067,184.16,184.06,0.69]
[1755533145773,0.67,184.14,184.06,0.69]
[1755533145968,6.1007961,184.14,184.08,15.10621557]
[1755533146175,6.1007961,184.14,184.09,40.02]
[1755533146176,0.67,184.13,184.09,40.02]
[1755533146389,5.4307961,184.14,184.09,40.02]
[1755533146586,5.4307961,184.14,184.07,20.538734]
[1755533146587,8.97622414,184.1,184.07,15.10621557]
[1755533146777,8.97622414,184.1,184.06,5.43296633]
[1755533146778,0.67,184.12,184.08,40.04]
[1755533146981,8.97622414,184.09,184.08,55.14621557]
[1755533147164,8.97622414,184.1,184.08,55.14621557]
[1755533147364,26.0,184.13,184.09,55.12621557]
[1755533147567,8.97622414,184.11,184.09,55.81621557]
[1755533147770,8.97622414,184.11,184.09,55.12621557]
[1755533147994,8.97622414,184.11,184.09,60.5582201]
[1755533148395,8.97622414,184.11,184.09,55.12621557]
[1755533148989,6.10069621,184.14,184.09,55.12621557]
[1755533149292,0.67,184.13,184.09,55.12621557]
[1755533149497,8.97622414,184.1,184.04,6.12360139]
[1755533149792,8.97622414,184.1,184.05,55.81621557]
[1755533149971,8.97622414,184.1,184.07,15.10621557]
[1755533150167,8.97622414,184.1,184.09,15.10621557]
[1755533150671,0.67,184.15,184.09,15.79621557]
[1755533150973,8.97622414,184.12,184.1,40.02]
[1755533151171,8.97622414,184.12,184.1,40.71]
[1755533151479,8.97622414,184.13,184.1,40.71]
[1755533151983,13.57352426,184.19,184.1,40.71]
[1755533151984,0.67,184.18,184.11,15.79621557]
[1755533152185,8.97622414,184.16,184.13,15.10621557]
[1755533152496,8.97622414,184.16,184.14,39.98]
[1755533152908,8.97622414,184.16,184.15,15.10621557]
[1755533153402,1.31665363,184.2,184.15,15.79621557]
[1755533153577,1.31665363,184.2,184.16,40.65]
[1755533153773,1.31665363,184.2,184.18,15.10621557]
[1755533153970,1.98665363,184.2,184.19,39.96]
[1755533154178,0.67,184.19,184.11,0.69]
[1755533154381,4.6602244,184.19,184.12,55.08621557]
[1755533154572,4.6602244,184.19,184.12,15.10621557]
[1755533155108,8.97622414,184.15,184.14,15.10621557]
[1755533155598,7.41560301,184.2,184.14,15.79621557]
[1755533155770,8.97622414,184.16,184.14,55.75621557]
[1755533156498,8.97622414,184.16,184.14,55.06621557]
[1755533156686,8.97622414,184.15,184.14,55.06621557]
[1755533157182,8.97622414,184.16,184.14,15.10621557]
[1755533157377,0.67,184.18,184.15,39.94]
[1755533157594,8.97622414,184.16,184.12,5.43124049]
[1755533157799,8.97622414,184.14,184.13,55.06621557]
[1755533158313,8.97622414,184.14,184.1,6.12158497]
[1755533158478,8.97622414,184.12,184.11,55.04621557]
[1755533158666,8.97622414,184.12,184.11,15.10621557]
[1755533158873,8.97622414,184.12,184.06,15.10621557]
[1755533158874,9.64622414,184.12,184.06,15.10621557]
[1755533159093,8.97622414,184.1,184.08,15.10621557]
[1755533159290,26.0,184.15,184.1,15.10621557]
[1755533159482,8.97622414,184.15,184.12,15.10621557]
[1755533159672,8.97622414,184.14,184.13,55.02621557]
[1755533159873,8.97622414,184.14,184.13,39.92]
[1755533160106,4.00254804,184.14,184.13,39.92]
[1755533160292,4.00254804,184.16,184.13,55.02621557]
[1755533160502,8.97622414,184.14,184.09,15.10621557]
[1755533160703,8.97622414,184.13,184.11,15.10621557]
[1755533160912,8.97622414,184.12,184.11,15.10621557]
[1755533161095,0.67,184.14,184.1,39.92]
[1755533161413,31.42987147,184.17,184.1,39.92]
[1755533161414,8.97622414,184.11,184.1,55.02621557]
[1755533161583,8.97622414,184.11,184.1,39.92]
[1755533161783,8.97622414,184.11,184.1,55.02621557]
[1755533162212,4.01346225,184.11,184.1,55.02621557]
[1755533162419,12.98968639,184.11,184.1,39.92]
[1755533163114,4.01346225,184.11,184.1,39.92]
[1755533163621,4.01346225,184.11,184.1,45.35183052]
[1755533163920,12.98968639,184.11,184.1,39.92]
[1755533164291,5.6862391,184.12,184.1,39.92]
[1755533164491,4.02007866,184.11,184.1,39.92]
[1755533164713,9.70631776,184.11,184.08,15.10621557]
[1755533164908,4.02007866,184.1,184.09,55.14621557]
[1755533165087,9.70631776,184.1,184.09,15.10621557]
[1755533165299,4.02007866,184.1,184.09,55.14621557]
[1755533166095,4.02007866,184.1,184.09,55.83621557]
[1755533166718,4.02007866,184.1,184.09,61.26834116]
[1755533167097,4.02007866,184.1,184.09,66.95458026]
[1755533167419,5.6862391,184.14,184.1,15.10621557]
[1755533167631,4.0235569,184.13,184.11,40.02]
[1755533167838,4.0235569,184.12,184.11,45.45153549]
[1755533168129,4.0235569,184.12,184.11,40.02]
[1755533168331,9.709796,184.12,184.11,40.02]
[1755533169709,4.0235569,184.12,184.1,20.53803449]
[1755533169903,5.6862391,184.12,184.11,40.04]
[1755533170101,4.02522597,184.12,184.11,40.04]
[1755533170325,4.02522597,184.12,184.11,55.14621557]
[1755533170522,0.65,184.18,184.12,15.10621557]
[1755533170710,4.02699186,184.17,184.14,15.10621557]
[1755533170912,4.02699186,184.16,184.15,55.88621557]
[1755533171112,1.31665363,184.2,184.15,55.88621557]
[1755533171307,4.02639744,184.19,184.16,15.78621557]
[1755533171507,1.31665363,184.2,184.17,55.92621557]
[1755533171715,1.31665363,184.2,184.19,15.10621557]
[1755533171913,1.31665363,184.2,184.19,60.71539196]
[1755533172120,1.31665363,184.2,184.19,61.39539196]
[1755533172320,1.31665363,184.2,184.19,67.08163106]
[1755533172733,1.31665363,184.2,184.19,61.39539196]
[1755533174102,1.31665363,184.2,184.18,5.42943311]
[1755533174309,1.31665363,184.2,184.19,55.28621557]
[1755533174527,14.9446427,184.2,184.19,40.14]
[1755533175408,14.2946427,184.2,184.19,40.14]
[1755533176440,5.34331889,184.2,184.19,40.14]
[1755533176628,14.2946427,184.2,184.19,40.14]
[1755533177432,14.9446427,184.2,184.19,40.14]
[1755533177816,14.2946427,184.2,184.19,40.14]
[1755533178914,14.9446427,184.2,184.19,40.14]
[1755533179118,20.37352435,184.2,184.19,40.14]
[1755533179527,14.9446427,184.2,184.19,40.14]
[1755533179835,20.38421342,184.2,184.19,40.14]
[1755533180137,17.93875342,184.2,184.19,40.14]
[1755533180435,8.98742961,184.2,184.19,40.14]
[1755533180610,5.35400796,184.2,184.19,40.82]
[1755533180809,1.31665363,184.2,184.19,61.35539196]
[1755533181121,1.31665363,184.2,184.19,70.30671577]
[1755533181319,0.06,184.23,184.2,15.10621557]
[1755533181535,0.06,184.23,184.22,8.95132381]
[1755533181732,0.06,184.23,184.21,64.93753938]
[1755533182026,0.06,184.23,184.22,6.10829225]
[1755533182218,4.1027731,184.23,184.22,6.10829225]
[1755533182419,4.1027731,184.23,184.22,30.16583163]
[1755533182739,6.09785578,184.33,184.22,30.16583163]
[1755533182740,3.63500476,184.32,184.23,15.10621557]
[1755533183045,4.04237067,184.31,184.29,15.10621557]
[1755533183209,4.04138959,184.3,184.23,15.10621557]
[1755533183406,3.63500476,184.33,184.29,8.95132381]
[1755533183638,4.04012867,184.32,184.31,15.10621557]
[1755533183846,4.04012867,184.32,184.31,55.96621557]
[1755533184349,12.9890525,184.35,184.31,61.39185715]
[1755533184516,4.03772869,184.34,184.31,61.39185715]
[1755533184717,4.03772869,184.33,184.32,15.78621557]
[1755533185015,4.03772869,184.33,184.32,40.16]
[1755533185824,12.9890525,184.33,184.32,40.16]
[1755533186034,4.03772869,184.33,184.32,40.16]
[1755533186374,4.03772869,184.33,184.32,40.14]
[1755533186817,12.9890525,184.33,184.29,0.68]
[1755533187015,4.03772869,184.32,184.3,55.92621557]
[1755533187222,8.95132381,184.33,184.3,55.24621557]
[1755533187848,4.03015998,184.32,184.3,55.24621557]
[1755533188251,8.95132381,184.33,184.3,55.24621557]
[1755533188252,8.95132381,184.33,184.3,15.10621557]
[1755533188450,8.95132381,184.33,184.31,40.12]
[1755533189440,8.95132381,184.32,184.31,40.12]
[1755533189634,9.60132381,184.32,184.31,40.12]
[1755533189833,4.67640263,184.32,184.31,40.12]
[1755533190067,13.62772644,184.32,184.31,40.12]
[1755533190243,19.0521434,184.32,184.31,40.12]
[1755533191654,19.05203296,184.32,184.31,40.12]
[1755533191863,18.40203296,184.32,184.31,40.12]
[1755533192162,12.97668574,184.32,184.31,40.12]
[1755533192367,4.02536193,184.32,184.31,40.12]
[1755533192659,13.62668574,184.32,184.31,40.12]
[1755533193272,19.05203296,184.32,184.31,40.12]
[1755533193645,12.97668574,184.32,184.31,40.12]
[1755533194267,19.05203296,184.32,184.31,40.12]
[1755533194467,10.35064135,184.32,184.27,5.42676455]
[1755533194644,5.67527942,184.29,184.28,40.06]
[1755533194949,5.67527942,184.29,184.28,40.02]
[1755533195555,5.67527942,184.29,184.27,0.68]
[1755533195743,6.0753589,184.32,184.28,40.02]
[1755533195949,4.67488594,184.31,184.28,40.02]
[1755533196266,4.02488594,184.31,184.29,0.68]
[1755533196843,4.02488594,184.31,184.28,40.02]
[1755533197166,26.0,184.32,184.28,40.7]
[1755533197370,5.67527942,184.29,184.28,40.7]
[1755533197675,0.06,184.33,184.28,55.80621557]
[1755533197882,5.73527942,184.33,184.3,15.10621557]
[1755533198074,0.06,184.33,184.32,15.10621557]
[1755533198369,0.06,184.33,184.32,15.78621557]
[1755533198574,5.73527942,184.33,184.28,5.42637753]
[1755533198748,5.67527942,184.3,184.29,40.04]
[1755533198951,5.67527942,184.3,184.26,6.10711386]
[1755533199256,5.67527942,184.31,184.27,55.82621557]
[1755533199460,5.67527942,184.32,184.28,0.68]
[1755533199660,5.67527942,184.32,184.29,0.68]
[1755533199869,5.67527942,184.31,184.3,40.04]
[1755533200249,6.38527942,184.31,184.3,40.04]
[1755533200445,5.67527942,184.31,184.3,40.04]
[1755533201883,26.0,184.27,184.2,6.075359]
[1755533202075,5.67527942,184.21,184.16,0.68]
[1755533202371,0.71,184.21,184.19,40.12]
[1755533202571,0.71,184.26,184.19,40.12]
[1755533202755,4.73553449,184.26,184.2,0.68]
[1755533202962,0.71,184.26,184.2,0.68]
[1755533203265,4.73584139,184.26,184.2,0.68]
[1755533203447,5.67527942,184.21,184.2,15.10621557]
[1755533203781,5.67527942,184.21,184.19,40.15]
[1755533203952,5.67527942,184.2,184.19,40.83]
[1755533204272,5.67527942,184.22,184.2,15.10621557]
[1755533204475,6.13739321,184.26,184.2,15.78621557]
[1755533204770,26.0,184.27,184.22,15.10621557]
[1755533204771,5.67527942,184.24,184.22,15.10621557]
[1755533204974,5.67527942,184.24,184.23,40.12]
[1755533206266,0.71,184.31,184.23,46.22799761]
[1755533206465,5.67527942,184.28,184.24,15.78621557]
[1755533206667,5.67527942,184.28,184.25,0.68]
[1755533206861,5.67527942,184.28,184.26,40.1]
[1755533207061,5.67527942,184.27,184.26,40.1]
[1755533207777,6.38527942,184.27,184.26,40.1]
[1755533208187,11.81209876,184.27,184.26,40.1]
[1755533208480,11.81209876,184.27,184.2,15.78621557]
[1755533208680,11.81209876,184.27,184.22,40.08]
[1755533208681,4.74103446,184.26,184.22,40.08]
[1755533208859,0.71,184.25,184.22,40.08]
[1755533209058,0.71,184.24,184.22,40.08]
[1755533209584,6.13681934,184.27,184.22,40.08]
[1755533209767,4.03263792,184.26,184.22,40.08]
[1755533210075,5.67527942,184.23,184.22,40.08]
[1755533210670,0.71,184.25,184.22,40.08]
[1755533210873,5.67527942,184.23,184.22,40.08]
[1755533211055,5.67527942,184.28,184.23,15.10621557]
[1755533211263,5.67527942,184.29,184.24,6.35527942]
[1755533211461,5.67527942,184.28,184.25,40.76]
[1755533212077,5.67527942,184.28,184.26,0.68]
[1755533212278,5.67527942,184.28,184.25,45.50724328]
[1755533212479,0.71,184.3,184.25,40.08]
[1755533212709,5.67527942,184.27,184.25,40.08]
[1755533212910,5.67527942,184.26,184.25,40.08]
[1755533214109,5.67527942,184.27,184.25,40.08]
[1755533214705,5.67527942,184.27,184.25,40.76]
[1755533215085,5.67527942,184.26,184.25,40.08]
[1755533216309,5.42599069,184.3,184.25,40.76]
[1755533216521,4.04475343,184.29,184.25,40.76]
[1755533216707,5.67527942,184.26,184.25,40.76]
[1755533216913,5.67527942,184.26,184.23,21.21414396]
[1755533217221,5.67527942,184.26,184.24,39.98]
[1755533217806,5.67527942,184.26,184.24,40.66]
[1755533218009,5.67527942,184.26,184.25,0.68]
[1755533218310,5.67527942,184.26,184.24,39.98]
[1755533218528,5.67527942,184.25,184.24,39.98]
[1755533219134,5.4262679,184.29,184.24,39.98]
[1755533219425,5.67527942,184.25,184.24,39.98]
[1755533220524,5.67527942,184.26,184.24,45.40770299]
[1755533220829,5.73527942,184.31,184.25,21.46149499]
[1755533221134,9.72088075,184.3,184.26,40.6]
[1755533221428,5.67527942,184.3,184.27,0.68]
[1755533221625,26.06,184.31,184.28,39.94]
[1755533221806,5.67527942,184.3,184.28,40.62]
[1755533221998,26.06,184.31,184.28,40.62]
[1755533222196,5.67527942,184.3,184.28,40.62]
[1755533222602,26.06,184.31,184.28,40.62]
[1755533222803,5.67527942,184.29,184.28,40.62]
[1755533223528,5.67527942,184.3,184.28,40.62]
[1755533224220,5.67527942,184.29,184.28,40.62]
[1755533224527,5.67527942,184.3,184.28,46.04648513]
[1755533224732,26.06,184.31,184.28,46.04648513]
[1755533225040,9.72500848,184.3,184.28,40.62]
[1755533225220,5.67527942,184.3,184.28,40.62]
[1755533226030,5.67527942,184.29,184.28,40.62]
[1755533226432,3.70675097,184.31,184.29,15.10621557]
[1755533226609,0.06,184.31,184.3,39.9]
[1755533226814,0.06,184.31,184.3,40.58]
[1755533227013,0.06,184.31,184.3,61.36149499]
[1755533227946,5.73527942,184.31,184.28,5.42647617]
[1755533228242,0.06,184.31,184.3,39.9]
[1755533228412,0.06,184.31,184.3,61.10215154]
[1755533229340,1e-08,184.31,184.3,66.77743096]
[1755533229513,1e-08,184.33,184.31,15.10621557]
[1755533229835,1e-08,184.33,184.32,55.06621557]
[1755533230031,1e-08,184.33,184.32,15.77621557]
[1755533230233,5.67527943,184.33,184.32,55.04621557]
[1755533230614,1e-08,184.33,184.32,55.04621557]
[1755533231026,5.67527943,184.33,184.32,39.94]
[1755533231209,1e-08,184.33,184.32,39.94]
[1755533231409,5.67527943,184.33,184.32,61.14156279]
[1755533231650,1e-08,184.33,184.32,61.14156279]
[1755533232335,5.67527943,184.33,184.32,60.47156279]
[1755533232524,5.67527943,184.33,184.32,55.04621557]
[1755533232838,10.44406486,184.33,184.31,40.04]
[1755533233031,4.76878543,184.32,184.31,40.04]
[1755533233233,10.44406485,184.32,184.31,40.04]
[1755533233544,4.04878543,184.32,184.31,40.04]
[1755533233846,5.67527942,184.32,184.31,40.04]
[1755533234236,9.72434033,184.32,184.31,40.04]
[1755533234413,15.86968755,184.32,184.31,40.04]
[1755533234616,13.83806889,184.32,184.31,40.04]
[1755533234929,19.51334831,184.32,184.29,40.06]
[1755533235234,8.41272167,184.31,184.29,40.06]
[1755533235450,10.44434033,184.3,184.29,40.06]
[1755533235615,6.39527942,184.3,184.29,40.06]
[1755533235922,10.44504126,184.3,184.29,40.06]
[1755533236319,10.44504126,184.3,184.23,0.03]
[1755533236320,5.42623039,184.29,184.23,0.03]
[1755533236523,5.67527942,184.24,184.23,0.03]
[1755533236936,5.67527942,184.24,184.23,40.05]
[1755533237113,0.72,184.26,184.23,40.05]
[1755533237315,3.64482581,184.29,184.24,21.45149499]
[1755533237544,1e-08,184.33,184.23,40.05]
[1755533237545,5.67527943,184.33,184.28,15.10621557]
[1755533237840,5.67527942,184.3,184.24,0.67]
[1755533238038,5.67527942,184.3,184.25,55.14621557]
[1755533238227,5.67527942,184.31,184.26,0.67]
[1755533238412,1e-08,184.33,184.28,20.78149499]
[1755533238616,1e-08,184.33,184.3,20.78149499]
[1755533238816,1e-08,184.33,184.3,15.10621557]
[1755533239032,1e-08,184.33,184.3,15.77621557]
[1755533239333,1e-08,184.33,184.29,40.06]